[Event "*** Titled Tuesday 3|2 Blitz"]
[Site "Chess.com"]
[Date "2015.09.01"]
[Round "8"]
[White "Tesla17"]
[Black "nightmaresknight"]
[Result "0-1"]
[WhiteElo "2136"]
[BlackElo "2327"]
[TimeControl "180+2"]
[EndTime "12:39:08 PDT"]
[Termination "nightmaresknight won by checkmate"]

1. d4 {[%clk 0:03:01.9]} 1... d5 {[%clk 0:02:51.1]} 2. c4 {[%clk 0:03:03.5]}
2... dxc4 {[%clk 0:02:51.1]} 3. e3 {[%clk 0:03:04.2]} 3... Nf6 {[%clk
0:02:51.6]} 4. Bxc4 {[%clk 0:03:05.7]} 4... e6 {[%clk 0:02:45.8]} 5. Nf3 {[%clk
0:03:06.8]} 5... c5 {[%clk 0:02:45.9]} 6. O-O {[%clk 0:03:08.1]} 6... a6 {[%clk
0:02:46.6]} 7. Bb3 {[%clk 0:03:07.6]} 7... b5 {[%clk 0:02:47.2]} 8. a4 {[%clk
0:03:08.2]} 8... Bb7 {[%clk 0:02:47.4]} 9. axb5 {[%clk 0:03:08.3]} 9... axb5
{[%clk 0:02:48.1]} 10. Rxa8 {[%clk 0:03:08.9]} 10... Bxa8 {[%clk 0:02:49.1]} 11.
Na3 {[%clk 0:03:08.9]} 11... Bc6 {[%clk 0:02:42.7]} 12. dxc5 {[%clk 0:03:08.1]}
12... Qxd1 {[%clk 0:02:41.3]} 13. Rxd1 {[%clk 0:03:08.2]} 13... Bxc5 {[%clk
0:02:28]} 14. Ne5 {[%clk 0:03:09.3]} 14... Bxa3 {[%clk 0:02:05.6]} 15. bxa3
{[%clk 0:03:07]} 15... O-O {[%clk 0:02:06.1]} 16. Nxc6 {[%clk 0:03:02.3]} 16...
Nxc6 {[%clk 0:02:04.7]} 17. f3 {[%clk 0:03:03.6]} 17... Na5 {[%clk 0:02:04.1]}
18. Bc2 {[%clk 0:03:02]} 18... Rc8 {[%clk 0:02:00.5]} 19. Bd3 {[%clk 0:03:03]}
19... Nc4 {[%clk 0:01:59.4]} 20. a4 {[%clk 0:02:51.4]} 20... Nd5 {[%clk
0:01:47.6]} 21. axb5 {[%clk 0:02:42.7]} 21... Ncxe3 {[%clk 0:01:48.2]} 22. Re1
{[%clk 0:02:34.3]} 22... Nc4 {[%clk 0:01:46.8]} 23. Bg5 {[%clk 0:02:27.5]} 23...
h6 {[%clk 0:01:45.9]} 24. Bh4 {[%clk 0:02:27.5]} 24... g5 {[%clk 0:01:43.7]} 25.
Bf2 {[%clk 0:02:27.9]} 25... Ncb6 {[%clk 0:01:41.6]} 26. Ra1 {[%clk 0:02:21.1]}
26... Rc3 {[%clk 0:01:40.6]} 27. Bf1 {[%clk 0:02:19.2]} 27... Rc7 {[%clk
0:01:29.4]} 28. h4 {[%clk 0:02:18.8]} 28... Rb7 {[%clk 0:01:16.8]} 29. Ra6
{[%clk 0:02:15.4]} 29... Nd7 {[%clk 0:01:13.5]} 30. Rd6 {[%clk 0:02:06.1]} 30...
N7b6 {[%clk 0:01:03.8]} 31. Rd8+ {[%clk 0:02:05.1]} 31... Kg7 {[%clk 0:01:04.6]}
32. Bd4+ {[%clk 0:02:05.6]} 32... f6 {[%clk 0:01:05.3]} 33. Rd6 {[%clk
0:01:54.7]} 33... Kf7 {[%clk 0:01:04.4]} 34. h5 {[%clk 0:01:46.3]} 34... Nc8
{[%clk 0:00:54.4]} 35. Rc6 {[%clk 0:01:45.7]} 35... Na7 {[%clk 0:00:50.9]} 36.
Rc5 {[%clk 0:01:46.8]} 36... Nb6 {[%clk 0:00:39.9]} 37. g4 {[%clk 0:01:36.3]}
37... Nd7 {[%clk 0:00:39.4]} 38. Rc6 {[%clk 0:00:50.2]} 38... Nxb5 {[%clk
0:00:38.7]} 39. Bf2 {[%clk 0:00:50]} 39... Ne5 {[%clk 0:00:36.7]} 40. Rc8 {[%clk
0:00:49]} 40... Nxf3+ {[%clk 0:00:34.7]} 41. Kg2 {[%clk 0:00:50.5]} 41... Ne5
{[%clk 0:00:34.6]} 42. Kh3 {[%clk 0:00:43.4]} 42... Nd6 {[%clk 0:00:32.2]} 43.
Rh8 {[%clk 0:00:43.4]} 43... Kg7 {[%clk 0:00:29.3]} 44. Rd8 {[%clk 0:00:41.8]}
44... Rb3+ {[%clk 0:00:29.6]} 45. Kg2 {[%clk 0:00:41.8]} 45... Ne4 {[%clk
0:00:30.3]} 46. Bd4 {[%clk 0:00:42.1]} 46... Nxg4 {[%clk 0:00:22.9]} 47. Bc4
{[%clk 0:00:43.2]} 47... Rg3+ {[%clk 0:00:21.1]} 48. Kf1 {[%clk 0:00:43.9]}
48... Rf3+ {[%clk 0:00:21.3]} 49. Ke1 {[%clk 0:00:44.2]} 49... Ra3 {[%clk
0:00:17.7]} 50. Bxe6 {[%clk 0:00:44.7]} 50... Ne5 {[%clk 0:00:10]} 51. Rg8+
{[%clk 0:00:37.9]} 51... Kh7 {[%clk 0:00:11.1]} 52. Rf8 {[%clk 0:00:39.1]} 52...
Nf3+ {[%clk 0:00:11.9]} 53. Kf1 {[%clk 0:00:38.4]} 53... Nxd4 {[%clk 0:00:12.9]}
54. Bd5 {[%clk 0:00:39.1]} 54... Rf3+ {[%clk 0:00:12.5]} 55. Kg2 {[%clk
0:00:40.1]} 55... Rf2+ {[%clk 0:00:09.9]} 56. Kg1 {[%clk 0:00:40.9]} 56... Ne2+
{[%clk 0:00:10]} 57. Kh1 {[%clk 0:00:41.6]} 57... N4g3# {[%clk 0:00:10.9]} 0-1

[Event "*** Titled Tuesday 3|2 Blitz"]
[Site "Chess.com"]
[Date "2015.09.01"]
[Round "8"]
[White "Thomaslegend"]
[Black "MFBerna"]
[Result "1-0"]
[WhiteElo "2131"]
[BlackElo "2112"]
[TimeControl "180+2"]
[EndTime "12:39:16 PDT"]
[Termination "Thomaslegend won by resignation"]

1. d4 {[%clk 0:03:01.9]} 1... d5 {[%clk 0:02:58.8]} 2. c4 {[%clk 0:03:03.2]}
2... e6 {[%clk 0:02:58.7]} 3. Nc3 {[%clk 0:03:03.9]} 3... Be7 {[%clk 0:02:59]}
4. Bf4 {[%clk 0:03:03.7]} 4... Nf6 {[%clk 0:02:59.8]} 5. e3 {[%clk 0:03:04.7]}
5... O-O {[%clk 0:03:00]} 6. a3 {[%clk 0:03:05.5]} 6... b6 {[%clk 0:02:58.1]} 7.
Nf3 {[%clk 0:03:04.6]} 7... Bb7 {[%clk 0:02:58.7]} 8. Be2 {[%clk 0:02:59.5]}
8... c5 {[%clk 0:02:58.8]} 9. O-O {[%clk 0:02:58.5]} 9... dxc4 {[%clk
0:02:58.7]} 10. Bxc4 {[%clk 0:02:59]} 10... Nbd7 {[%clk 0:02:59.3]} 11. Nb5
{[%clk 0:02:44.6]} 11... cxd4 {[%clk 0:02:46]} 12. exd4 {[%clk 0:02:27.8]} 12...
Rc8 {[%clk 0:02:26.6]} 13. Bb3 {[%clk 0:02:13.8]} 13... a6 {[%clk 0:02:18.5]}
14. Nd6 {[%clk 0:02:10.4]} 14... Bd5 {[%clk 0:02:15.4]} 15. Nxc8 {[%clk
0:02:02.5]} 15... Qxc8 {[%clk 0:02:14.9]} 16. Rc1 {[%clk 0:02:01]} 16... Qb7
{[%clk 0:02:11.9]} 17. Bxd5 {[%clk 0:01:56.2]} 17... Qxd5 {[%clk 0:02:11.5]} 18.
Ne5 {[%clk 0:01:50]} 18... Nxe5 {[%clk 0:01:36.8]} 19. dxe5 {[%clk 0:01:39.6]}
19... Qxd1 {[%clk 0:01:36.9]} 20. Rfxd1 {[%clk 0:01:40.7]} 20... Nd5 {[%clk
0:01:38.8]} 21. Be3 {[%clk 0:01:29.7]} 21... Nxe3 {[%clk 0:01:36.4]} 22. fxe3
{[%clk 0:01:30.4]} 22... Bc5 {[%clk 0:01:36.9]} 23. Kf2 {[%clk 0:01:30.4]} 23...
a5 {[%clk 0:01:35]} 24. Ke2 {[%clk 0:01:28.5]} 24... Ra8 {[%clk 0:01:23.4]} 25.
Rd7 {[%clk 0:01:25.4]} 25... Rf8 {[%clk 0:01:08.3]} 26. Rc4 {[%clk 0:01:19.1]}
26... Re8 {[%clk 0:00:53.3]} 27. Rf4 {[%clk 0:01:06.8]} 27... Be7 {[%clk
0:00:51.7]} 28. Rc4 {[%clk 0:00:53.4]} 28... f6 {[%clk 0:00:48.9]} 29. Rcc7
{[%clk 0:00:42.2]} 29... Kf8 {[%clk 0:00:47]} 30. exf6 {[%clk 0:00:33.3]} 30...
Bxf6 {[%clk 0:00:47.3]} 31. b3 {[%clk 0:00:28.7]} 31... Ra8 {[%clk 0:00:41.3]}
32. a4 {[%clk 0:00:28.3]} 32... Kg8 {[%clk 0:00:36.9]} 33. g3 {[%clk 0:00:17.3]}
33... Rb8 {[%clk 0:00:37.3]} 34. Kd3 {[%clk 0:00:15.8]} 34... Kf8 {[%clk
0:00:37.6]} 35. Kc4 {[%clk 0:00:15.5]} 35... Be5 {[%clk 0:00:32.4]} 36. Rf7+
{[%clk 0:00:14.9]} 36... Kg8 {[%clk 0:00:33.1]} 37. Rb7 {[%clk 0:00:10.6]} 37...
Rc8+ {[%clk 0:00:33.9]} 38. Kb5 {[%clk 0:00:12.1]} 38... Rc3 {[%clk 0:00:35.1]}
39. Rfd7 {[%clk 0:00:09.3]} 39... Rxb3+ {[%clk 0:00:32.4]} 40. Ka6 {[%clk
0:00:10.6]} 40... h6 {[%clk 0:00:23.7]} 41. Rxb6 {[%clk 0:00:10.3]} 41... Rxe3
{[%clk 0:00:17]} 42. Rxe6 {[%clk 0:00:09]} 42... Bd4 {[%clk 0:00:05.9]} 43. Rxe3
{[%clk 0:00:08.8]} 43... Bxe3 {[%clk 0:00:07.8]} 44. Rd5 {[%clk 0:00:08]} 44...
Bg1 {[%clk 0:00:05.8]} 45. h3 {[%clk 0:00:08.2]} 45... Bf2 {[%clk 0:00:06.5]}
46. g4 {[%clk 0:00:09.1]} 46... Be1 {[%clk 0:00:07.6]} 47. Rxa5 {[%clk
0:00:07.5]} 47... Kf7 {[%clk 0:00:06.9]} 48. Rf5+ {[%clk 0:00:08.1]} 48... Ke6
{[%clk 0:00:07.9]} 49. Kb7 {[%clk 0:00:06.6]} 49... g6 {[%clk 0:00:09.3]} 50.
Rb5 {[%clk 0:00:07.1]} 50... h5 {[%clk 0:00:08]} 51. a5 {[%clk 0:00:07.3]} 51...
hxg4 {[%clk 0:00:08.8]} 52. hxg4 {[%clk 0:00:09.2]} 52... Bf2 {[%clk 0:00:08.4]}
53. a6 {[%clk 0:00:10.6]} 1-0

[Event "*** Titled Tuesday 3|2 Blitz"]
[Site "Chess.com"]
[Date "2015.09.01"]
[Round "8"]
[White "Tesla37"]
[Black "Iball95"]
[Result "1-0"]
[WhiteElo "2544"]
[BlackElo "2352"]
[TimeControl "180+2"]
[EndTime "12:39:19 PDT"]
[Termination "Tesla37 won by resignation"]

1. e4 {[%clk 0:03:01.9]} 1... c5 {[%clk 0:02:59.5]} 2. Nf3 {[%clk 0:03:02.5]}
2... Nc6 {[%clk 0:03:00.7]} 3. Nc3 {[%clk 0:03:03.3]} 3... g6 {[%clk 0:03:00.9]}
4. d4 {[%clk 0:03:03.9]} 4... cxd4 {[%clk 0:03:01.5]} 5. Nxd4 {[%clk 0:03:05.5]}
5... Bg7 {[%clk 0:03:03.2]} 6. Nde2 {[%clk 0:03:07.1]} 6... Nf6 {[%clk 0:03:04]}
7. g3 {[%clk 0:03:08.7]} 7... O-O {[%clk 0:03:05.5]} 8. Bg2 {[%clk 0:03:09.9]}
8... Rb8 {[%clk 0:03:07.2]} 9. a4 {[%clk 0:03:09.4]} 9... a6 {[%clk 0:03:07.8]}
10. O-O {[%clk 0:03:11]} 10... d6 {[%clk 0:03:08.7]} 11. b3 {[%clk 0:03:08.6]}
11... b5 {[%clk 0:03:03.3]} 12. axb5 {[%clk 0:03:08.8]} 12... axb5 {[%clk
0:03:05.2]} 13. Bb2 {[%clk 0:03:09.8]} 13... b4 {[%clk 0:02:50.3]} 14. Nb1
{[%clk 0:03:10]} 14... Bb7 {[%clk 0:02:48]} 15. Nd2 {[%clk 0:02:54.3]} 15... Qc7
{[%clk 0:02:42.6]} 16. Nc4 {[%clk 0:02:53.5]} 16... Rfd8 {[%clk 0:02:36.3]} 17.
Ne3 {[%clk 0:02:44]} 17... e6 {[%clk 0:02:16.7]} 18. Ra2 {[%clk 0:02:39.6]}
18... Ne5 {[%clk 0:02:06]} 19. f3 {[%clk 0:02:35.3]} 19... d5 {[%clk 0:02:04.4]}
20. Qa1 {[%clk 0:02:32.1]} 20... Ned7 {[%clk 0:01:45.3]} 21. e5 {[%clk 0:02:31]}
21... Ne8 {[%clk 0:01:44.3]} 22. f4 {[%clk 0:02:31.8]} 22... Nc5 {[%clk
0:01:43.5]} 23. Nd4 {[%clk 0:02:25.1]} 23... Ne4 {[%clk 0:01:41.6]} 24. Ra4
{[%clk 0:02:21.1]} 24... Bf8 {[%clk 0:01:40.2]} 25. Qe1 {[%clk 0:02:14.9]} 25...
Qb6 {[%clk 0:01:30.7]} 26. Qe2 {[%clk 0:02:08.5]} 26... Nc7 {[%clk 0:01:24.4]}
27. Rd1 {[%clk 0:02:03.8]} 27... Bc5 {[%clk 0:01:18.9]} 28. Bf3 {[%clk
0:01:38.2]} 28... Bc6 {[%clk 0:00:51.2]} 29. Raa1 {[%clk 0:01:27.6]} 29... Nc3
{[%clk 0:00:51.2]} 30. Bxc3 {[%clk 0:01:28.4]} 30... bxc3 {[%clk 0:00:52.4]} 31.
Nxc6 {[%clk 0:01:27.8]} 31... Qxc6 {[%clk 0:00:50.7]} 32. Kg2 {[%clk 0:01:27.6]}
32... Qb6 {[%clk 0:00:51.1]} 33. Ng4 {[%clk 0:01:27.8]} 33... Nb5 {[%clk
0:00:51.1]} 34. Nf6+ {[%clk 0:01:28]} 34... Kg7 {[%clk 0:00:52.2]} 35. Qd3
{[%clk 0:01:22.4]} 35... Be7 {[%clk 0:00:51.6]} 36. Ng4 {[%clk 0:01:13.1]} 36...
h5 {[%clk 0:00:52.7]} 37. Nf2 {[%clk 0:01:12.7]} 37... Bc5 {[%clk 0:00:53.4]}
38. Rf1 {[%clk 0:01:10.2]} 38... Nd4 {[%clk 0:00:52]} 39. Nh3 {[%clk 0:01:06.5]}
39... Nf5 {[%clk 0:00:52]} 40. Kh1 {[%clk 0:01:03.7]} 40... Qb4 {[%clk
0:00:43.9]} 41. Ra4 {[%clk 0:01:03]} 41... Qb6 {[%clk 0:00:44.4]} 42. Qxc3
{[%clk 0:00:59.3]} 42... Rdc8 {[%clk 0:00:45.9]} 43. Qd3 {[%clk 0:01:00.2]}
43... Bd4 {[%clk 0:00:46.5]} 44. Ng5 {[%clk 0:00:57.7]} 44... Rc3 {[%clk
0:00:46.4]} 45. Qe2 {[%clk 0:00:39.7]} 45... Rbc8 {[%clk 0:00:46.5]} 46. Ra2
{[%clk 0:00:40.7]} 46... R8c7 {[%clk 0:00:42.8]} 47. Bxh5 {[%clk 0:00:40.4]}
47... gxh5 {[%clk 0:00:43.8]} 48. Qxh5 {[%clk 0:00:40.7]} 48... Nh6 {[%clk
0:00:45.5]} 49. Nf3 {[%clk 0:00:30.9]} 49... Rxc2 {[%clk 0:00:28]} 50. Qg5+
{[%clk 0:00:31.7]} 50... Kh7 {[%clk 0:00:28.9]} 51. Ra8 {[%clk 0:00:32.3]} 51...
Rc8 {[%clk 0:00:26.2]} 52. Rxc8 {[%clk 0:00:33.1]} 52... Rxc8 {[%clk 0:00:28.1]}
53. Qf6 {[%clk 0:00:34.5]} 53... Rg8 {[%clk 0:00:27.3]} 54. Ng5+ {[%clk
0:00:35.4]} 54... Rxg5 {[%clk 0:00:28.3]} 55. fxg5 {[%clk 0:00:37.1]} 55... Qb5
{[%clk 0:00:27.6]} 56. Qxh6+ {[%clk 0:00:29.4]} 56... Kg8 {[%clk 0:00:28.1]} 57.
Qf6 {[%clk 0:00:30.2]} 57... Qb7 {[%clk 0:00:23]} 58. g6 {[%clk 0:00:31]} 58...
fxg6 {[%clk 0:00:24.4]} 59. Qxg6+ {[%clk 0:00:30.7]} 59... Qg7 {[%clk
0:00:22.1]} 60. Qe8+ {[%clk 0:00:32.2]} 60... Kh7 {[%clk 0:00:22.9]} 61. Rf7
{[%clk 0:00:33.9]} 1-0

[Event "*** Titled Tuesday 3|2 Blitz"]
[Site "Chess.com"]
[Date "2015.09.01"]
[Round "8"]
[White "Moltini"]
[Black "alturas_pacificas"]
[Result "0-1"]
[WhiteElo "2082"]
[BlackElo "2012"]
[TimeControl "180+2"]
[EndTime "12:39:22 PDT"]
[Termination "alturas_pacificas won by resignation"]

1. d4 {[%clk 0:03:01.9]} 1... d5 {[%clk 0:02:59.7]} 2. c4 {[%clk 0:03:02.8]}
2... c6 {[%clk 0:03:00.1]} 3. Nc3 {[%clk 0:03:03.7]} 3... Nf6 {[%clk 0:03:01.2]}
4. Nf3 {[%clk 0:03:05]} 4... e6 {[%clk 0:03:01.9]} 5. g3 {[%clk 0:03:05]} 5...
Nbd7 {[%clk 0:03:02]} 6. Bg2 {[%clk 0:03:06.2]} 6... Bd6 {[%clk 0:03:03.5]} 7.
O-O {[%clk 0:03:07]} 7... O-O {[%clk 0:03:04.4]} 8. Nd2 {[%clk 0:03:08.6]} 8...
Be7 {[%clk 0:02:55.6]} 9. e4 {[%clk 0:03:09.1]} 9... dxe4 {[%clk 0:02:53.2]} 10.
Ncxe4 {[%clk 0:03:10.1]} 10... Nxe4 {[%clk 0:02:54.6]} 11. Nxe4 {[%clk 0:03:11]}
11... Nf6 {[%clk 0:02:54.1]} 12. Nc3 {[%clk 0:03:12]} 12... Qd7 {[%clk
0:02:40.6]} 13. Be3 {[%clk 0:03:11.5]} 13... b6 {[%clk 0:02:39.6]} 14. Qe2
{[%clk 0:03:11.5]} 14... Ba6 {[%clk 0:02:28.4]} 15. Rfd1 {[%clk 0:03:11.5]}
15... Rfd8 {[%clk 0:02:24.5]} 16. b3 {[%clk 0:03:12.2]} 16... Rac8 {[%clk
0:02:21.5]} 17. h4 {[%clk 0:03:12]} 17... Qe8 {[%clk 0:02:18.5]} 18. Rac1 {[%clk
0:03:07.7]} 18... Ba3 {[%clk 0:01:48.8]} 19. Rc2 {[%clk 0:03:07.2]} 19... h6
{[%clk 0:01:46.1]} 20. Qf3 {[%clk 0:03:02.8]} 20... Bb4 {[%clk 0:01:34.7]} 21.
Bxh6 {[%clk 0:02:58.5]} 21... e5 {[%clk 0:01:13.5]} 22. d5 {[%clk 0:02:38.9]}
22... Bxc3 {[%clk 0:01:04.6]} 23. Rxc3 {[%clk 0:02:34.7]} 23... cxd5 {[%clk
0:01:05.4]} 24. Bg5 {[%clk 0:02:23.5]} 24... dxc4 {[%clk 0:00:56]} 25. Bxf6
{[%clk 0:02:01.7]} 25... Rxd1+ {[%clk 0:00:53.3]} 26. Qxd1 {[%clk 0:02:02.3]}
26... gxf6 {[%clk 0:00:52]} 27. Bh3 {[%clk 0:02:00.3]} 27... Rd8 {[%clk
0:00:45.1]} 28. Qf3 {[%clk 0:01:58.9]} 28... Qe7 {[%clk 0:00:33.8]} 29. bxc4
{[%clk 0:01:57.9]} 29... Bb7 {[%clk 0:00:32.4]} 30. Qg4+ {[%clk 0:01:54.5]}
30... Kf8 {[%clk 0:00:32.3]} 31. h5 {[%clk 0:01:55.6]} 31... Qb4 {[%clk
0:00:24.1]} 32. Rc1 {[%clk 0:01:36.8]} 32... Qd2 {[%clk 0:00:22.8]} 33. Rf1
{[%clk 0:01:33.8]} 33... Rd4 {[%clk 0:00:20.6]} 34. Qf5 {[%clk 0:01:31.2]} 34...
Qg5 {[%clk 0:00:16.9]} 35. Qxg5 {[%clk 0:01:10.2]} 35... fxg5 {[%clk 0:00:18.8]}
36. Rc1 {[%clk 0:01:09.2]} 36... g4 {[%clk 0:00:18.1]} 37. Bg2 {[%clk
0:01:09.8]} 37... Bxg2 {[%clk 0:00:13.8]} 38. Kxg2 {[%clk 0:01:10.8]} 38... e4
{[%clk 0:00:12.3]} 39. c5 {[%clk 0:01:11.3]} 39... bxc5 {[%clk 0:00:13.6]} 40.
Rxc5 {[%clk 0:01:12.1]} 40... Rd2 {[%clk 0:00:15.2]} 41. Re5 {[%clk 0:01:12]}
41... Rxa2 {[%clk 0:00:15.2]} 42. Rxe4 {[%clk 0:01:12.7]} 42... Ra5 {[%clk
0:00:16.6]} 43. Rxg4 {[%clk 0:01:10.1]} 43... Rxh5 {[%clk 0:00:18.1]} 44. Rb4
{[%clk 0:01:11.1]} 44... Ra5 {[%clk 0:00:17]} 45. f4 {[%clk 0:01:11.2]} 45...
Ra1 {[%clk 0:00:17.7]} 46. Kf3 {[%clk 0:01:12.3]} 46... a5 {[%clk 0:00:18.4]}
47. Rb7 {[%clk 0:01:13.4]} 47... a4 {[%clk 0:00:19.7]} 48. Ra7 {[%clk
0:01:14.8]} 48... a3 {[%clk 0:00:20.8]} 49. Kg4 {[%clk 0:01:16.4]} 49... a2
{[%clk 0:00:22]} 50. Kf5 {[%clk 0:01:17]} 50... Kg7 {[%clk 0:00:20.7]} 51. g4
{[%clk 0:01:17.3]} 51... Kf8 {[%clk 0:00:16]} 52. Kf6 {[%clk 0:01:17.4]} 52...
Ke8 {[%clk 0:00:17.1]} 53. Ra8+ {[%clk 0:01:16.3]} 53... Kd7 {[%clk 0:00:18.3]}
54. Kxf7 {[%clk 0:01:17.8]} 54... Rf1 {[%clk 0:00:18.6]} 55. f5 {[%clk
0:01:16.2]} 55... a1=Q {[%clk 0:00:18.2]} 56. Rxa1 {[%clk 0:01:17.5]} 56... Rxa1
{[%clk 0:00:19.6]} 57. g5 {[%clk 0:01:19]} 57... Ra5 {[%clk 0:00:16.7]} 58. Kf6
{[%clk 0:01:16.4]} 58... Ke8 {[%clk 0:00:14.8]} 59. g6 {[%clk 0:01:13.5]} 59...
Kf8 {[%clk 0:00:14.9]} 60. g7+ {[%clk 0:01:00.3]} 60... Kg8 {[%clk 0:00:15.6]}
61. Kg6 {[%clk 0:01:01.7]} 61... Ra1 {[%clk 0:00:12.3]} 62. f6 {[%clk
0:01:02.7]} 62... Rg1+ {[%clk 0:00:13.1]} 63. Kf5 {[%clk 0:01:04]} 63... Kf7
{[%clk 0:00:14.2]} 64. Ke5 {[%clk 0:01:05]} 64... Re1+ {[%clk 0:00:14.6]} 65.
Kf5 {[%clk 0:01:05.9]} 65... Rf1+ {[%clk 0:00:15.8]} 66. Kg5 {[%clk 0:01:05.5]}
66... Rg1+ {[%clk 0:00:17]} 67. Kf5 {[%clk 0:01:06.7]} 67... Rg6 {[%clk
0:00:17.2]} 68. Ke5 {[%clk 0:01:07.8]} 68... Rg5+ {[%clk 0:00:16]} 69. Kf4
{[%clk 0:01:08.5]} 69... Kxf6 {[%clk 0:00:17.1]} 70. g8=N+ {[%clk 0:01:05.8]}
70... Rxg8 {[%clk 0:00:17.9]} 0-1

[Event "*** Titled Tuesday 3|2 Blitz"]
[Site "Chess.com"]
[Date "2015.09.01"]
[Round "8"]
[White "AnastasiaProtopopova"]
[Black "Bab3s"]
[Result "0-1"]
[WhiteElo "1809"]
[BlackElo "2119"]
[TimeControl "180+2"]
[EndTime "12:39:48 PDT"]
[Termination "Bab3s won by resignation"]

1. Nf3 {[%clk 0:03:01.9]} 1... Nf6 {[%clk 0:03:00.9]} 2. c4 {[%clk 0:02:57.4]}
2... e6 {[%clk 0:03:01.7]} 3. Nc3 {[%clk 0:02:56.9]} 3... d5 {[%clk 0:03:01.1]}
4. d4 {[%clk 0:02:57.1]} 4... Be7 {[%clk 0:03:00.2]} 5. Bf4 {[%clk 0:02:57.3]}
5... O-O {[%clk 0:03:01.1]} 6. e3 {[%clk 0:02:58.1]} 6... c5 {[%clk 0:03:01.4]}
7. cxd5 {[%clk 0:02:58.1]} 7... Nxd5 {[%clk 0:03:00.8]} 8. Nxd5 {[%clk
0:02:55.9]} 8... Qxd5 {[%clk 0:03:01.5]} 9. Be2 {[%clk 0:02:52.7]} 9... Nc6
{[%clk 0:03:01.6]} 10. O-O {[%clk 0:02:53.5]} 10... cxd4 {[%clk 0:03:02.1]} 11.
exd4 {[%clk 0:02:52.6]} 11... Rd8 {[%clk 0:02:56.4]} 12. Be3 {[%clk 0:02:49.7]}
12... Bf6 {[%clk 0:02:54.9]} 13. Qc2 {[%clk 0:02:38.8]} 13... Nxd4 {[%clk
0:02:43.3]} 14. Nxd4 {[%clk 0:02:38.5]} 14... Bxd4 {[%clk 0:02:44.1]} 15. Rfd1
{[%clk 0:02:39.4]} 15... e5 {[%clk 0:02:40]} 16. Bf3 {[%clk 0:02:37.4]} 16...
Qb5 {[%clk 0:02:29]} 17. Qc7 {[%clk 0:02:32.4]} 17... Be6 {[%clk 0:02:20.6]} 18.
Bxb7 {[%clk 0:02:26.1]} 18... Rab8 {[%clk 0:02:18.4]} 19. Bc6 {[%clk 0:02:23.7]}
19... Qxb2 {[%clk 0:02:05.5]} 20. Bxd4 {[%clk 0:02:20.7]} 20... exd4 {[%clk
0:02:01.3]} 21. Be4 {[%clk 0:02:14.6]} 21... Qb6 {[%clk 0:01:44.8]} 22. Qe5
{[%clk 0:02:09.5]} 22... Qd6 {[%clk 0:01:37.3]} 23. Qa5 {[%clk 0:02:07.7]} 23...
Qb6 {[%clk 0:01:24.8]} 24. Qh5 {[%clk 0:02:04.9]} 24... g6 {[%clk 0:01:24.6]}
25. Qe5 {[%clk 0:02:05]} 25... Qd6 {[%clk 0:01:06.7]} 26. Qa5 {[%clk 0:01:59]}
26... Rd7 {[%clk 0:01:01.2]} 27. Rab1 {[%clk 0:01:53.5]} 27... Rxb1 {[%clk
0:00:45.9]} 28. Rxb1 {[%clk 0:01:53.6]} 28... d3 {[%clk 0:00:41.9]} 29. Rd1
{[%clk 0:01:45.6]} 29... d2 {[%clk 0:00:41.6]} 30. Bf3 {[%clk 0:01:45.4]} 30...
Qd3 {[%clk 0:00:19]} 31. Qe5 {[%clk 0:01:18.1]} 31... Qd4 {[%clk 0:00:10.9]} 32.
Qa5 {[%clk 0:01:08]} 32... Qb2 {[%clk 0:00:07.5]} 33. Qa4 {[%clk 0:00:59.8]}
33... Qxa2 {[%clk 0:00:05.7]} 34. Qb4 {[%clk 0:00:53.4]} 34... a5 {[%clk
0:00:04]} 35. Qb8+ {[%clk 0:00:53.3]} 35... Kg7 {[%clk 0:00:04.3]} 36. Qe5+
{[%clk 0:00:53.5]} 36... f6 {[%clk 0:00:04.9]} 37. Qb5 {[%clk 0:00:48.5]} 37...
Qc4 {[%clk 0:00:04.2]} 38. Qxa5 {[%clk 0:00:46.2]} 38... Qc2 {[%clk 0:00:04]}
39. Qb5 {[%clk 0:00:44.2]} 39... Qb3 {[%clk 0:00:04.3]} 40. Qe2 {[%clk 0:00:35]}
40... Qc4 {[%clk 0:00:03.1]} 41. Rxd2 {[%clk 0:00:30.7]} 41... Rxd2 {[%clk
0:00:03.3]} 42. Qxd2 {[%clk 0:00:29.5]} 42... Bg4 {[%clk 0:00:03.7]} 43. Bxg4
{[%clk 0:00:28.2]} 43... Qxg4 {[%clk 0:00:05.6]} 44. h3 {[%clk 0:00:29.1]} 44...
Qe6 {[%clk 0:00:06]} 45. Qc3 {[%clk 0:00:27]} 45... h5 {[%clk 0:00:06.7]} 46.
Qc7+ {[%clk 0:00:27.9]} 46... Kh6 {[%clk 0:00:07.5]} 47. Qf4+ {[%clk 0:00:28.7]}
47... g5 {[%clk 0:00:08.4]} 48. Qb4 {[%clk 0:00:26.6]} 48... Kg6 {[%clk
0:00:06.5]} 49. Qd2 {[%clk 0:00:26.3]} 49... f5 {[%clk 0:00:05.7]} 50. Qc3
{[%clk 0:00:22.3]} 50... f4 {[%clk 0:00:05.5]} 51. Qd3+ {[%clk 0:00:22.7]} 51...
Qf5 {[%clk 0:00:05.7]} 52. Qxf5+ {[%clk 0:00:22]} 52... Kxf5 {[%clk 0:00:07.6]}
53. g3 {[%clk 0:00:21.1]} 53... f3 {[%clk 0:00:08]} 54. Kh2 {[%clk 0:00:21.7]}
54... Ke4 {[%clk 0:00:07.2]} 55. Kg1 {[%clk 0:00:22.2]} 55... Kd3 {[%clk
0:00:07.7]} 56. h4 {[%clk 0:00:09.2]} 56... g4 {[%clk 0:00:08.2]} 57. Kf1 {[%clk
0:00:10]} 57... Kd2 {[%clk 0:00:08.8]} 58. Kg1 {[%clk 0:00:10.8]} 58... Ke2
{[%clk 0:00:10.7]} 59. Kh1 {[%clk 0:00:07.5]} 59... Kxf2 {[%clk 0:00:12.6]} 60.
Kh2 {[%clk 0:00:09.1]} 60... Ke2 {[%clk 0:00:13.5]} 0-1